bitfinex/quotes_SOLUSD_20250416
["timestamp","ask_amount","ask_price","bid_price","bid_amount"]
[1744812729788,82.9,125.73,125.69,36.46267726]
[1744812729993,82.9,125.76,125.72,36.46267726]
[1744812730178,44.41350529,125.78,125.74,36.46267726]
[1744812730374,36.46267726,125.77,125.73,36.46267726]
[1744812730575,26.0,125.77,125.73,36.46267726]
[1744812730787,62.46267726,125.77,125.73,36.46267726]
[1744812731303,7.95082803,125.78,125.73,44.41584386]
[1744812731593,36.46267726,125.77,125.73,44.41584386]
[1744812731892,36.46267726,125.75,125.71,36.46267726]
[1744812732109,36.46267726,125.75,125.71,7.95481664]
[1744812732390,36.46267726,125.74,125.71,7.95481664]
[1744812733094,36.46267726,125.72,125.67,32.0757]
[1744812733275,36.46267726,125.71,125.68,7.95671546]
[1744812733602,36.46267726,125.79,125.71,52.26184886]
[1744812733903,20.0,125.86,125.77,36.46267726]
[1744812734105,36.46267726,125.82,125.77,36.46267726]
[1744812734281,62.46267726,125.82,125.77,36.46267726]
[1744812735103,36.46267726,125.81,125.76,55.11232612]
[1744812735407,36.46267726,125.81,125.77,7.9510217]
[1744812736113,36.46267726,125.8,125.77,7.9510217]
[1744812736310,36.46267726,125.81,125.77,7.9510217]
[1744812737087,36.46267726,125.79,125.75,7.95228628]
[1744812737401,36.46267726,125.77,125.74,7.95291872]
[1744812737916,62.46267726,125.78,125.74,7.95291872]
[1744812738279,36.46267726,125.77,125.72,44.41686116]
[1744812738485,36.46267726,125.76,125.72,7.9541839]
[1744812738804,36.46267726,125.75,125.72,7.9541839]
[1744812739108,36.46267726,125.77,125.72,7.9541839]
[1744812739297,26.0,125.78,125.72,44.41686116]
[1744812739617,36.46267726,125.77,125.72,44.41686116]
[1744812739814,36.46267726,125.75,125.72,7.9541839]
[1744812740481,36.46267726,125.75,125.71,7.95481664]
[1744812740689,33.95066677,125.78,125.72,36.46267726]
[1744812740887,26.0,125.77,125.73,36.46267726]
[1744812741284,36.46267726,125.79,125.74,36.46267726]
[1744812741491,26.0,125.8,125.76,36.46267726]
[1744812741697,36.46267726,125.82,125.77,36.46267726]
[1744812741986,36.46267726,125.8,125.75,36.46267726]
[1744812742189,36.46267726,125.8,125.73,36.46267726]
[1744812742190,36.46267726,125.78,125.73,36.46267726]
[1744812742397,36.46267726,125.79,125.75,36.46267726]
[1744812742607,36.46267726,125.79,125.75,44.41456181]
[1744812743220,36.46267726,125.78,125.74,7.95271838]
[1744812743381,36.46267726,125.78,125.73,44.41608508]
[1744812743586,36.46267726,125.77,125.73,7.95340782]
[1744812743791,7.94976339,125.79,125.73,44.41608508]
[1744812743988,36.46267726,125.78,125.74,36.46267726]
[1744812744704,36.46267726,125.78,125.74,44.41540412]
[1744812745114,36.46267726,125.78,125.74,7.95272686]
[1744812745617,36.46267726,125.77,125.74,7.95272686]
[1744812746000,36.46267726,125.77,125.73,44.41594331]
[1744812746197,36.46267726,125.77,125.73,7.95326605]
[1744812746513,7.94990178,125.79,125.69,44.64964886]
[1744812746514,36.46267726,125.75,125.69,19.89014303]
[1744812746818,36.46267726,125.75,125.71,36.46267726]
[1744812746987,36.46267726,125.76,125.71,36.46267726]
[1744812747187,22.77640494,125.76,125.71,22.77640494]
[1744812747687,22.77640494,125.77,125.72,22.77640494]
[1744812747885,82.9,125.78,125.75,22.77640494]
[1744812748094,22.77640494,125.79,125.75,22.77640494]
[1744812748294,22.77640494,125.79,125.74,22.77640494]
[1744812748502,56.7257895,125.8,125.75,22.77640494]
[1744812748892,26.0,125.8,125.75,22.77640494]
[1744812749106,48.77640494,125.8,125.76,7.95165394]
[1744812749421,36.4181017,125.79,125.75,7.95197718]
[1744812749589,36.4181017,125.78,125.75,7.95197718]
[1744812749786,36.4181017,125.79,125.75,7.95197718]
[1744812750017,36.4181017,125.79,125.75,44.37007888]
[1744812750217,62.4181017,125.8,125.75,44.37007888]
[1744812750391,36.4181017,125.79,125.75,44.37007888]
[1744812750885,36.4181017,125.79,125.75,7.95197718]
[1744812751085,36.4181017,125.77,125.72,36.4181017]
[1744812751307,36.4181017,125.75,125.71,7.95481664]
[1744812751508,36.4181017,125.74,125.69,7.95608242]
[1744812751701,36.4181017,125.73,125.69,7.95608242]
[1744812752209,36.4181017,125.73,125.69,44.37418412]
[1744812752418,36.4181017,125.71,125.68,7.95665415]
[1744812752795,82.9,125.75,125.68,7.95665415]
[1744812753095,82.9,125.75,125.72,44.3722856]
[1744812753293,62.4181017,125.76,125.72,44.3722856]
[1744812753494,26.0,125.76,125.72,7.9541839]
[1744812753693,70.36977343,125.76,125.72,7.9541839]
[1744812754117,82.9,125.78,125.73,36.4181017]
[1744812754306,1.5121,125.8,125.75,36.4181017]
[1744812754608,1.5121,125.8,125.72,14.1222839]
[1744812754609,36.4181017,125.8,125.72,14.1222839]
[1744812754816,36.4181017,125.79,125.75,36.4181017]
[1744812755008,36.4181017,125.8,125.75,36.4181017]
[1744812755208,36.4181017,125.79,125.75,44.37002751]
[1744812755607,36.4181017,125.8,125.75,7.95192581]
[1744812755915,36.4181017,125.8,125.75,44.37002751]
[1744812756103,97.32978939,125.81,125.75,44.37002751]
[1744812756411,36.4181017,125.8,125.75,44.37002751]
[1744812756615,119.3181017,125.81,125.76,36.4181017]
[1744812756824,127.26675306,125.81,125.76,36.4181017]
[1744812757014,36.4181017,125.8,125.75,64.25074321]
[1744812757915,36.4181017,125.8,125.75,27.83264151]
[1744812758119,36.4181017,125.8,125.75,64.25074321]
[1744812758609,127.26675306,125.81,125.76,36.4181017]
[1744812759427,82.9,125.81,125.77,36.4181017]
[1744812759629,36.4181017,125.81,125.76,36.4181017]
[1744812759830,36.4181017,125.8,125.73,27.83742941]
[1744812760124,36.4181017,125.79,125.74,36.4181017]
[1744812760414,36.4181017,125.79,125.75,36.4181017]
[1744812760626,36.4181017,125.79,125.74,36.4181017]
[1744812761209,44.36804536,125.79,125.74,44.37045603]
[1744812761624,44.36804536,125.79,125.75,36.4181017]
[1744812762024,36.4181017,125.79,125.75,36.4181017]
[1744812762415,44.36693878,125.81,125.76,36.4181017]
[1744812763530,44.36693878,125.81,125.76,44.36927258]
[1744812763729,33.94825353,125.82,125.77,36.4181017]
[1744812763903,36.4181017,125.81,125.76,44.36927258]
[1744812765223,36.4181017,125.8,125.75,44.37007876]
[1744812766108,44.36731566,125.8,125.75,44.37007876]
[1744812766724,36.4181017,125.81,125.77,36.4181017]
[1744812766913,36.4181017,125.81,125.76,36.4181017]
[1744812767315,36.4181017,125.79,125.73,7.95355126]
[1744812767611,36.4181017,125.74,125.7,7.95544948]
[1744812767920,36.4181017,125.75,125.7,44.37355118]
[1744812768704,26.0,125.76,125.72,36.4181017]
[1744812768916,36.4181017,125.75,125.7,36.4181017]
[1744812769129,36.4181017,125.74,125.7,36.4181017]
[1744812769421,36.4181017,125.74,125.69,44.37392629]
[1744812769624,36.4181017,125.72,125.68,6.0008]
[1744812769925,44.37258301,125.72,125.67,44.37513118]
[1744812770103,36.4181017,125.72,125.68,36.4181017]
[1744812770308,36.4181017,125.71,125.66,7.95766702]
[1744812770824,36.4181017,125.71,125.66,44.37576872]
[1744812771323,36.4181017,125.71,125.66,7.95766702]
[1744812771510,7.95544948,125.7,125.66,7.95766702]
[1744812771823,7.95544948,125.7,125.66,44.37576872]
[1744812772121,36.4181017,125.69,125.64,63.02668903]
[1744812772308,36.4181017,125.69,125.64,7.95893847]
[1744812772506,36.4181017,125.66,125.62,50.87160495]
[1744812773014,36.4181017,125.67,125.62,50.87160495]
[1744812773209,90.26217488,125.7,125.62,6.4931]
[1744812773410,7.9586152,125.65,125.61,7.96090184]
[1744812773619,7.9586152,125.65,125.61,44.37900354]
[1744812774010,44.3767169,125.65,125.61,44.37900354]
[1744812774212,44.3767169,125.65,125.61,7.96090184]
[1744812774411,44.3767169,125.65,125.61,44.37900354]
[1744812774719,36.4181017,125.63,125.59,50.91173265]
[1744812774908,36.4181017,125.63,125.59,36.4181017]
[1744812775107,36.4181017,125.63,125.58,44.38086982]
[1744812775310,36.4181017,125.63,125.59,30.0]
[1744812775516,44.37805979,125.63,125.59,66.4181017]
[1744812776213,7.95995809,125.63,125.59,74.38047278]
[1744812776530,44.37805979,125.63,125.59,30.0]
[1744812776724,36.4181017,125.6,125.59,30.0]
[1744812777037,36.4181017,125.6,125.54,36.4181017]
[1744812777209,36.4181017,125.59,125.55,66.4181017]
[1744812777408,62.4181017,125.61,125.56,36.4181017]
[1744812777627,44.37988513,125.6,125.56,36.4181017]
[1744812777829,36.4181017,125.58,125.55,30.0]
[1744812778007,36.4181017,125.57,125.53,7.96603329]
[1744812778202,36.4181017,125.58,125.53,44.38413499]
[1744812778519,36.4181017,125.58,125.54,36.4181017]
[1744812778720,116.86132386,125.61,125.55,36.4181017]
[1744812778926,36.4181017,125.59,125.54,36.4181017]
[1744812779132,36.4181017,125.58,125.54,36.4181017]
[1744812779426,36.4181017,125.59,125.54,36.4181017]
[1744812779642,44.38057245,125.59,125.54,44.38342175]
[1744812779811,36.4181017,125.59,125.54,44.38342175]
[1744812780316,145.3181017,125.61,125.56,36.4181017]
[1744812780516,62.4181017,125.61,125.56,36.4181017]
[1744812780716,44.37876502,125.62,125.57,36.4181017]
[1744812780918,1.6613,125.63,125.59,36.4181017]
[1744812780919,36.4181017,125.63,125.59,36.4181017]
[1744812781115,36.4181017,125.62,125.57,36.4181017]
[1744812781321,36.4181017,125.61,125.54,7.96532005]
[1744812781523,36.4181017,125.59,125.55,36.4181017]
[1744812781834,36.4181017,125.58,125.53,44.38432491]
[1744812782037,36.4181017,125.56,125.52,44.38473705]
[1744812782339,26.0,125.56,125.52,7.96663535]
[1744812782524,36.4181017,125.55,125.51,7.96731347]
[1744812782918,36.4181017,125.55,125.52,30.0]
[1744812783421,26.0,125.56,125.53,36.4181017]
[1744812783740,7.96051584,125.62,125.55,36.4181017]
[1744812784030,36.4181017,125.59,125.55,44.38281465]
[1744812784408,36.4181017,125.6,125.55,44.38281465]
[1744812784614,62.4181017,125.61,125.56,36.4181017]
[1744812786035,70.37930931,125.61,125.57,7.96368559]
[1744812786213,62.4181017,125.61,125.57,7.96368559]
[1744812786417,62.4181017,125.61,125.57,44.38178729]
[1744812786611,26.0,125.61,125.58,36.4181017]
[1744812787025,26.0,125.61,125.57,44.38178729]
[1744812787430,26.0,125.61,125.58,36.4181017]
[1744812787630,26.0,125.61,125.57,44.38178729]
[1744812789332,36.4181017,125.6,125.56,44.38220637]
[1744812789537,36.4181017,125.6,125.55,36.4181017]
[1744812789736,36.4181017,125.6,125.54,7.96558865]
[1744812789919,36.4181017,125.6,125.54,37.96558865]
[1744812790115,36.4181017,125.57,125.54,30.0]
[1744812791015,36.4181017,125.57,125.53,7.96594075]
[1744812791525,36.4181017,125.54,125.51,7.96705231]
[1744812791836,36.4181017,125.55,125.52,30.0]
[1744812793137,36.4181017,125.54,125.52,30.0]
[1744812793338,36.4181017,125.55,125.52,37.96685551]
[1744812793644,36.4181017,125.56,125.52,74.38495721]
[1744812793940,36.4181017,125.56,125.52,37.96685551]
[1744812794132,36.4181017,125.55,125.52,37.96685551]
[1744812795621,44.38247377,125.56,125.52,37.96685551]
[1744812795820,44.38253104,125.56,125.52,37.96685551]
[1744812797955,36.4181017,125.55,125.52,37.96685551]
[1744812798134,36.4181017,125.56,125.52,37.96685551]
[1744812799032,7.96368559,125.57,125.52,30.0]
[1744812799033,36.4181017,125.54,125.52,30.0]
[1744812799626,26.0,125.54,125.52,30.0]
[1744812799939,33.96596805,125.54,125.52,30.0]
[1744812800158,26.0,125.54,125.51,44.38512988]
[1744812800649,26.0,125.56,125.53,36.4181017]
[1744812801022,26.0,125.56,125.52,36.4181017]
[1744812801255,26.0,125.56,125.54,36.4181017]
[1744812801427,90.86270417,125.59,125.55,36.4181017]
[1744812801625,19.90332357,125.61,125.52,36.4181017]
[1744812801626,7.96208087,125.6,125.56,36.4181017]
[1744812801825,119.3181017,125.61,125.57,36.4181017]
[1744812801826,82.9,125.61,125.57,36.4181017]
[1744812802151,36.4181017,125.63,125.58,44.38084537]
[1744812802347,7.96051584,125.62,125.59,36.4181017]
[1744812802521,26.0,125.62,125.59,36.4181017]
[1744812802722,7.9586152,125.65,125.61,36.4181017]
[1744812802943,7.9586152,125.65,125.59,36.4181017]
[1744812802944,62.4181017,125.64,125.59,36.4181017]
[1744812803146,26.0,125.62,125.59,36.4181017]
[1744812803532,36.4181017,125.64,125.6,36.4181017]
[1744812803837,62.4181017,125.64,125.6,36.4181017]
[1744812804150,44.37757207,125.64,125.6,36.4181017]
[1744812804455,36.4181017,125.63,125.58,36.4181017]
[1744812804743,36.4181017,125.62,125.57,36.4181017]
[1744812805448,7.96114959,125.61,125.57,36.4181017]
[1744812805624,7.96114959,125.61,125.57,44.38170021]
[1744812805822,7.96114959,125.61,125.57,36.4181017]
[1744812806532,44.37892757,125.62,125.58,36.4181017]
[1744812806952,44.37892757,125.62,125.57,36.4181017]
[1744812807433,44.37892757,125.62,125.57,44.38162727]
[1744812807627,36.4181017,125.61,125.56,44.38209029]
[1744812807840,44.37892757,125.62,125.57,36.4181017]
[1744812808332,7.96082587,125.62,125.58,36.4181017]
[1744812809844,7.96082587,125.62,125.57,7.96363657]
[1744812810047,7.96082587,125.62,125.54,26.44350308]
[1744812810048,36.4181017,125.61,125.55,7.9649542]
[1744812810225,36.4181017,125.61,125.56,36.4181017]
[1744812810427,26.0,125.57,125.51,6.0035]
[1744812810627,26.0,125.57,125.53,36.4181017]
[1744812810828,26.0,125.57,125.53,44.38399495]
[1744812811044,26.0,125.57,125.54,36.4181017]
[1744812811244,36.4181017,125.59,125.54,36.4181017]
[1744812811440,116.8620253,125.6,125.56,36.4181017]
[1744812811641,70.380127,125.6,125.55,36.4181017]
[1744812812039,36.4181017,125.59,125.54,36.4181017]
[1744812812627,36.4181017,125.58,125.53,36.4181017]
[1744812813047,7.96368559,125.57,125.53,44.38425009]
[1744812813251,7.96368559,125.57,125.53,36.4181017]
[1744812813761,7.96368559,125.57,125.53,44.38417227]
[1744812814258,26.0,125.58,125.55,36.4181017]
[1744812814463,26.0,125.58,125.54,36.4181017]
[1744812814961,7.96241738,125.59,125.54,36.4181017]
[1744812815142,36.4181017,125.59,125.54,44.3832968]
[1744812816173,44.38114174,125.59,125.54,44.3832968]
[1744812817671,36.4181017,125.59,125.54,44.3832968]
[1744812817869,1.583,125.62,125.57,36.4181017]
[1744812818043,38.0011017,125.62,125.57,36.4181017]
[1744812818250,45.9619578,125.62,125.57,36.4181017]
[1744812818559,45.9619578,125.62,125.54,38.5636205]
[1744812818560,36.4181017,125.6,125.55,36.4181017]
[1744812819262,36.4181017,125.61,125.55,36.4181017]
[1744812819463,36.4181017,125.61,125.56,36.4181017]
[1744812819634,36.4181017,125.59,125.53,33.96594123]
[1744812819841,82.9,125.61,125.54,66.4181017]
[1744812820040,36.4181017,125.6,125.55,36.4181017]
[1744812820364,44.38051908,125.59,125.54,74.38358829]
[1744812820861,44.38051908,125.59,125.54,74.38355057]
[1744812821046,44.38051908,125.59,125.54,44.38355057]
[1744812821251,70.38051908,125.59,125.54,36.4181017]
[1744812821843,70.38051908,125.59,125.54,44.38365995]
[1744812822160,70.38051908,125.59,125.53,7.96592808]
[1744812822341,36.4181017,125.58,125.53,36.4181017]
[1744812823169,36.4181017,125.54,125.5,7.96762971]
[1744812823467,26.0,125.56,125.5,44.38573141]
[1744812823468,36.4181017,125.55,125.5,44.38573141]
[1744812824249,36.4181017,125.53,125.48,7.96906595]
[1744812824454,36.4181017,125.5,125.49,30.0]
[1744812824647,62.4181017,125.5,125.49,30.0]
[1744812825046,62.4181017,125.5,125.44,44.38952901]
[1744812825259,36.4181017,125.48,125.44,44.38952901]
[1744812825561,62.4181017,125.5,125.45,36.4181017]
[1744812825867,26.0,125.5,125.47,36.4181017]
[1744812826040,36.4181017,125.52,125.48,36.4181017]
[1744812826041,62.4181017,125.52,125.48,36.4181017]
[1744812826241,70.38543711,125.52,125.47,36.4181017]
[1744812826471,36.4181017,125.5,125.43,18.64964886]
[1744812826646,36.4181017,125.5,125.45,36.4181017]
[1744812826844,62.4181017,125.49,125.44,66.4181017]
[1744812827641,70.38709936,125.49,125.44,74.38975957]
[1744812827965,70.38709936,125.49,125.44,44.38975957]
[1744812828660,26.0,125.49,125.46,36.4181017]
[1744812830746,26.0,125.49,125.46,44.38861186]
[1744812831437,108.9,125.51,125.48,36.4181017]
[1744812831646,44.38485617,125.53,125.48,36.4181017]
[1744812831847,70.38485617,125.53,125.48,36.4181017]
[1744812832065,36.4181017,125.52,125.46,7.97051016]
[1744812832255,36.4181017,125.51,125.47,36.4181017]
[1744812832453,36.4181017,125.51,125.46,36.4181017]
[1744812832661,36.4181017,125.5,125.45,7.97108747]
[1744812832841,44.38686415,125.49,125.44,44.38960492]
[1744812833166,26.0,125.5,125.46,36.4181017]
[1744812833465,26.0,125.5,125.47,36.4181017]
[1744812833667,26.0,125.5,125.46,36.4181017]
[1744812834762,26.0,125.5,125.45,36.4181017]
[1744812834763,70.38639782,125.5,125.45,36.4181017]
[1744812835142,70.38639782,125.5,125.46,7.97066794]
[1744812835874,44.38639782,125.5,125.46,7.97066794]
[1744812836455,7.9670149,125.52,125.46,44.38876964]
[1744812836762,70.3851166,125.52,125.47,36.4181017]
[1744812837173,70.3851166,125.52,125.47,44.38791603]
[1744812837944,36.4181017,125.51,125.46,44.38843869]
[1744812838957,44.38569205,125.51,125.46,44.38843869]
[1744812839160,36.4181017,125.49,125.44,36.4181017]
[1744812839364,22.87598495,125.48,125.43,7.97257434]
[1744812839546,22.87598495,125.47,125.44,30.0]
[1744812839749,22.87598495,125.46,125.44,30.0]
[1744812839949,22.87598495,125.45,125.41,7.97351679]
[1744812840154,82.9,125.48,125.41,30.84950174]
[1744812840360,22.87598495,125.47,125.42,22.87598495]
[1744812840564,22.87598495,125.46,125.41,30.84950174]
[1744812840769,22.87598495,125.46,125.42,30.0]
[1744812840953,22.87598495,125.46,125.42,37.97289177]
[1744812841155,36.61438825,125.46,125.42,7.97289177]
[1744812841680,36.61438825,125.45,125.41,7.97357222]
[1744812841886,36.61438825,125.46,125.41,44.58796047]
[1744812842887,7.970516,125.47,125.41,44.58796047]
[1744812843091,36.61438825,125.46,125.41,44.58796047]
[1744812843267,44.58518026,125.46,125.41,44.58796047]
[1744812844086,36.61438825,125.47,125.42,66.61438825]
[1744812844264,36.61438825,125.47,125.43,36.61438825]
[1744812844587,36.61438825,125.47,125.42,66.61438825]
[1744812844771,36.61438825,125.45,125.42,30.0]
[1744812844967,44.58646517,125.44,125.42,30.0]
[1744812845173,36.61438825,125.43,125.42,30.0]
[1744812845377,44.58646517,125.44,125.42,30.0]
[1744812845557,36.61438825,125.45,125.42,30.0]
[1744812845874,62.61438825,125.45,125.42,30.0]
[1744812846080,62.61438825,125.45,125.4,36.61438825]
[1744812846271,36.61438825,125.44,125.41,30.0]
[1744812846966,7.97257434,125.43,125.41,30.0]
[1744812847276,44.58696259,125.43,125.41,30.0]
[1744812847880,36.61438825,125.43,125.41,30.0]
[1744812848179,44.58647494,125.44,125.41,30.0]
[1744812848351,44.58647494,125.44,125.4,7.97437474]
[1744812848688,36.61438825,125.43,125.35,8.066]
[1744812848868,36.61438825,125.41,125.37,30.0]
[1744812849072,36.61438825,125.41,125.37,44.59049386]
[1744812849388,82.9,125.43,125.39,36.61438825]
[1744812849681,82.9,125.45,125.41,36.61438825]
[1744812849882,145.51438825,125.45,125.4,36.61438825]
[1744812850593,153.48577945,125.45,125.4,36.61438825]
[1744812850773,108.9,125.45,125.41,36.61438825]
[1744812850974,26.0,125.45,125.41,36.61438825]
[1744812851659,33.97137685,125.45,125.41,36.61438825]
[1744812852686,26.0,125.45,125.41,36.61438825]
[1744812852890,26.0,125.45,125.41,44.58797561]
[1744812853583,33.97136446,125.45,125.41,44.58797561]
[1744812854663,70.58575271,125.45,125.41,7.97358736]
[1744812855864,26.0,125.45,125.41,44.58797561]
[1744812856064,33.97135575,125.45,125.41,7.97358736]
[1744812856264,33.97135575,125.45,125.41,44.58797561]
[1744812856567,70.585744,125.45,125.41,44.58797561]
[1744812856763,70.585744,125.45,125.41,36.61438825]
[1744812857065,36.61438825,125.44,125.39,36.61438825]
[1744812857474,36.61438825,125.42,125.37,36.61438825]
[1744812857869,36.61438825,125.42,125.37,44.59077813]
[1744812858595,44.58765884,125.42,125.38,44.58997422]
[1744812859263,44.58724011,125.43,125.39,36.61438825]
[1744812859491,82.9,125.44,125.4,36.61438825]
[1744812859974,119.51438825,125.44,125.4,36.61438825]
[1744812860286,36.61438825,125.43,125.39,36.61438825]
[1744812860491,36.61438825,125.42,125.37,36.61438825]
[1744812860794,7.97384578,125.41,125.37,44.59058331]
[1744812861101,44.5879244,125.42,125.38,36.61438825]
[1744812861389,30.87162409,125.42,125.38,22.89808794]
[1744812861774,36.91192409,125.42,125.37,7.97619506]
[1744812862087,14.01383615,125.42,125.37,30.874283]
[1744812862270,36.91192409,125.42,125.38,30.87349402]
[1744812862472,82.9,125.43,125.38,30.87349402]
[1744812862473,82.9,125.43,125.4,22.89808794]
[1744812863168,62.9098549,125.45,125.4,22.89808794]
[1744812863385,7.97146696,125.45,125.41,22.89808794]
[1744812863595,90.87068271,125.46,125.42,22.89808794]
[1744812863763,139.76877065,125.46,125.41,22.89808794]
[1744812864300,108.9,125.46,125.42,22.89808794]
[1744812864600,108.9,125.46,125.43,22.89808794]
[1744812864779,26.0,125.46,125.43,22.89808794]
[1744812866003,1.5997,125.47,125.43,22.89808794]
[1744812866294,139.76699502,125.49,125.44,22.89808794]
[1744812866485,22.89808794,125.48,125.43,7.97227311]
[1744812866687,22.89808794,125.47,125.42,30.87105388]
[1744812868200,7.97066794,125.46,125.42,30.87105388]
[1744812868393,30.86875588,125.46,125.41,30.87161634]
[1744812868595,56.86875588,125.46,125.41,30.87161634]
[1744812869263,82.9,125.49,125.45,22.89808794]
[1744812869466,7.96845134,125.5,125.47,22.89808794]
[1744812869662,33.96845134,125.5,125.46,22.89808794]
[1744812870694,22.89808794,125.49,125.42,7.97321001]
[1744812870897,22.89808794,125.49,125.44,22.89808794]
[1744812871893,7.9692905,125.49,125.45,22.89808794]
[1744812872098,108.9,125.5,125.46,22.89808794]
[1744812872398,26.0,125.5,125.47,22.89808794]
[1744812872603,26.0,125.5,125.46,22.89808794]
[1744812872785,56.86631253,125.5,125.45,22.89808794]
[1744812874304,56.86631253,125.5,125.45,30.86878291]
[1744812874479,26.0,125.5,125.46,22.89808794]
[1744812874804,56.86637656,125.5,125.45,30.86878291]
[1744812875103,22.89808794,125.47,125.41,19.93403623]
[1744812875299,22.89808794,125.44,125.39,19.93737947]
[1744812875605,22.89808794,125.44,125.4,7.97448165]
[1744812876173,24.41248794,125.45,125.4,30.87256959]
[1744812876498,32.38382409,125.45,125.4,7.97448165]
[1744812876717,32.38382409,125.45,125.4,30.87256959]
[1744812877004,1.5144,125.45,125.4,30.87256959]
[1744812877195,24.41248794,125.45,125.4,30.87256959]
[1744812878478,32.38382513,125.45,125.4,30.87256959]
[1744812879308,22.89808794,125.44,125.4,7.97448165]
[1744812879620,22.89808794,125.44,125.39,30.87289988]
[1744812880408,32.38382513,125.45,125.4,22.89808794]
[1744812880601,1.5144,125.45,125.41,22.89808794]
[1744812881613,9.48578122,125.45,125.41,22.89808794]
[1744812881994,9.48578122,125.45,125.4,22.89808794]
[1744812882803,32.38386916,125.45,125.4,30.87224376]
[1744812883007,1.5144,125.45,125.42,22.89808794]
[1744812883215,30.86895362,125.46,125.41,22.89808794]
[1744812883706,33.97035139,125.47,125.43,22.89808794]
[1744812884010,56.86843933,125.47,125.42,22.89808794]
[1744812884906,56.86843933,125.47,125.4,27.91035996]
[1744812884907,22.89808794,125.45,125.41,7.97341029]
[1744812885207,22.89808794,125.45,125.38,19.9388991]
[1744812885208,22.89808794,125.45,125.4,30.87230634]
[1744812886417,30.86927845,125.46,125.41,22.89808794]
[1744812887502,30.86927845,125.46,125.41,30.87155802]
[1744812888220,7.97119051,125.46,125.41,30.87155802]
[1744812888420,30.86927845,125.46,125.41,30.87155802]
[1744812888608,33.9703396,125.47,125.41,30.87155802]
[1744812888812,33.9703396,125.47,125.43,22.89808794]
[1744812889317,33.9703396,125.47,125.42,22.89808794]
[1744812889516,33.9703396,125.47,125.41,22.89808794]
[1744812889517,22.89808794,125.46,125.41,22.89808794]
[1744812889698,22.89808794,125.45,125.4,30.87228786]
[1744812889898,22.89808794,125.46,125.4,7.97419992]
[1744812890221,22.89808794,125.46,125.41,22.89808794]
[1744812890410,22.89808794,125.46,125.4,30.87228786]
[1744812891217,7.9713033,125.45,125.4,30.87228786]
[1744812891402,7.97084634,125.46,125.41,22.89808794]
[1744812891725,116.87038895,125.47,125.42,22.89808794]
[1744812892125,22.89808794,125.46,125.41,22.89808794]
[1744812892622,116.87038895,125.47,125.42,30.87082361]
[1744812893121,139.76847689,125.47,125.42,30.87082361]
[1744812893920,139.76847689,125.47,125.42,30.87126977]
[1744812895723,116.87038895,125.47,125.42,30.87126977]
[1744812895929,139.76847689,125.47,125.42,30.87126977]
[1744812897940,22.89808794,125.46,125.41,30.87162705]
[1744812898426,22.89808794,125.45,125.4,30.87229427]
[1744812899096,22.89808794,125.44,125.39,30.87290284]
[1744812899524,22.89808794,125.45,125.39,30.87290284]
[1744812899696,22.89808794,125.45,125.4,22.89808794]
[1744812900096,7.97193877,125.44,125.39,22.89808794]
[1744812900293,7.9713033,125.45,125.4,22.89808794]
[1744812900630,1.5277,125.48,125.44,22.89808794]
[1744812900933,42.89808794,125.52,125.47,22.89808794]
[1744812900934,82.9,125.52,125.47,22.89808794]
[1744812901106,1.6221,125.53,125.51,22.89808794]
[1744812901305,9.58834439,125.53,125.5,22.89808794]
[1744812901517,32.48643233,125.53,125.48,22.89808794]
[1744812901719,9.58834439,125.53,125.49,22.89808794]
[1744812902231,1.6221,125.53,125.5,22.89808794]
[1744812902714,9.58837271,125.53,125.5,22.89808794]
[1744812902914,1.6221,125.53,125.51,22.89808794]
[1744812903113,26.0,125.54,125.51,22.89808794]
[1744812903444,1.63,125.56,125.53,22.89808794]
[1744812903625,1.63,125.56,125.5,18.64964886]
[1744812903937,1.63,125.56,125.53,22.89808794]
[1744812904533,1.63,125.56,125.53,30.86423118]
[1744812904731,1.63,125.56,125.53,22.89808794]
[1744812904937,33.96380837,125.57,125.53,22.89808794]
[1744812905137,56.86189631,125.57,125.52,22.89808794]
[1744812905318,22.89808794,125.56,125.51,22.89808794]
[1744812905641,22.89808794,125.56,125.49,7.96876245]
[1744812905642,22.89808794,125.56,125.52,22.89808794]
[1744812906231,7.96456104,125.56,125.52,22.89808794]
[1744812906545,30.86264898,125.56,125.52,22.89808794]
[1744812907041,22.89808794,125.55,125.5,22.89808794]
[1744812907338,22.89808794,125.55,125.51,22.89808794]
[1744812907540,30.86264898,125.56,125.51,22.89808794]
[1744812909138,30.86264898,125.56,125.51,30.86555562]
[1744812909351,33.96394557,125.57,125.53,22.89808794]
[1744812909649,56.86203351,125.57,125.52,22.89808794]
[1744812910024,33.96394557,125.57,125.53,22.89808794]
[1744812910440,33.96394557,125.57,125.51,7.96746768]
[1744812910441,22.89808794,125.56,125.51,22.89808794]
[1744812911449,33.96394557,125.57,125.53,22.89808794]
[1744812911651,16.16667284,125.6,125.56,22.89808794]